bitfinex/quotes_BTCUSD_20250218
["timestamp","ask_amount","ask_price","bid_price","bid_amount"]
[1739868909973,3.10776069,95403.0,95402.0,0.0003404]
[1739868910382,2.54185469,95403.0,95402.0,0.0003404]
[1739868910916,2.07065369,95403.0,95402.0,0.0003404]
[1739868911500,1.62288769,95403.0,95402.0,0.0003404]
[1739868912013,1.38559269,95403.0,95402.0,0.0003404]
[1739868912226,1.15808269,95403.0,95402.0,0.0003404]
[1739868914987,1.09612969,95403.0,95402.0,0.0003404]
[1739868915188,0.33310988,95403.0,95402.0,0.0003404]
[1739868915516,0.01933612,95403.0,95402.0,0.0771404]
[1739868915837,0.0001702,95407.0,95402.0,0.08951846]
[1739868915966,0.0001702,95407.0,95406.0,0.0839177]
[1739868916438,0.0001702,95407.0,95406.0,0.1609177]
[1739868916648,0.0001702,95407.0,95406.0,0.3181397]
[1739868917478,0.0001702,95407.0,95406.0,0.1609177]
[1739868918090,0.0001702,95407.0,95406.0,0.21373001]
[1739868918299,0.0001702,95407.0,95406.0,0.1609177]
[1739868918609,0.0001702,95407.0,95406.0,0.3181397]
[1739868918843,0.0001702,95407.0,95406.0,0.3231397]
[1739868918972,0.0001702,95407.0,95406.0,0.1659177]
[1739868919182,0.20961,95416.0,95406.0,0.1719177]
[1739868919404,0.359601,95419.0,95406.0,0.21010731]
[1739868919582,0.15,95418.0,95406.0,0.1719177]
[1739868920080,0.157212,95413.0,95406.0,0.1609177]
[1739868920278,0.209606,95417.0,95406.0,0.1609177]
[1739868920477,0.209606,95417.0,95406.0,0.1639177]
[1739868920478,0.209612,95415.0,95406.0,0.1639177]
[1739868920682,0.157212,95413.0,95406.0,0.1639177]
[1739868920886,0.157212,95413.0,95406.0,0.1609177]
[1739868921081,0.157212,95413.0,95406.0,0.1649177]
[1739868921292,0.157213,95412.0,95406.0,0.1649177]
[1739868921497,0.20961,95416.0,95406.0,0.1649177]
[1739868921711,0.157213,95412.0,95406.0,0.23532351]
[1739868921927,0.157213,95412.0,95406.0,0.23732351]
[1739868922131,0.15,95419.0,95406.0,0.23532351]
[1739868922348,0.15,95419.0,95406.0,0.1609177]
[1739868922547,0.16697181,95419.0,95406.0,0.1649177]
[1739868922750,0.16697181,95419.0,95406.0,0.1689177]
[1739868923159,0.157216,95411.0,95406.0,0.1649177]
[1739868923483,0.0001702,95413.0,95406.0,0.1629177]
[1739868923705,0.0001702,95413.0,95406.0,0.1639177]
[1739868923922,0.157216,95410.0,95406.0,0.1619177]
[1739868924275,0.157215,95411.0,95406.0,0.1619177]
[1739868924894,0.0001702,95413.0,95406.0,0.1659177]
[1739868925099,0.157212,95412.0,95406.0,0.1659177]
[1739868925294,0.0001702,95413.0,95406.0,0.1689177]
[1739868925492,0.0001702,95413.0,95406.0,0.082]
[1739868925697,0.157221,95407.0,95406.0,0.082]
[1739868925862,0.0001702,95413.0,95406.0,0.086]
[1739868926059,0.157221,95407.0,95406.0,0.082]
[1739868926270,0.157221,95407.0,95406.0,0.077]
[1739868926471,0.157221,95407.0,95406.0,0.084]
[1739868926889,0.2097852,95413.0,95406.0,0.08]
[1739868927232,0.157217,95410.0,95406.0,0.086]
[1739868927438,0.209617,95412.0,95406.0,0.086]
[1739868927795,0.0001702,95413.0,95406.0,0.086]
[1739868927989,0.209619,95411.0,95406.0,0.083]
[1739868928375,0.0001702,95413.0,95406.0,0.082]
[1739868928609,0.0001702,95413.0,95406.0,0.077]
[1739868928844,0.0001702,95413.0,95406.0,0.08]
[1739868929042,0.157217,95410.0,95406.0,0.08]
[1739868929304,0.157218,95409.0,95406.0,0.08]
[1739868929522,0.15722,95408.0,95406.0,0.08]
[1739868929724,0.366838,95410.0,95406.0,0.08]
[1739868929840,0.157217,95410.0,95406.0,0.08]
[1739868930206,0.157217,95410.0,95406.0,0.084]
[1739868930410,0.157218,95409.0,95406.0,0.084]
[1739868930767,0.157217,95410.0,95406.0,0.08]
[1739868930950,0.209618,95412.0,95406.0,0.08]
[1739868931150,0.209618,95412.0,95406.0,0.077]
[1739868931431,0.20962,95411.0,95406.0,0.082]
[1739868931632,0.157217,95410.0,95406.0,0.086]
[1739868931810,0.157217,95410.0,95406.0,0.082]
[1739868932010,0.0001702,95413.0,95406.0,0.082]
[1739868932213,0.157221,95408.0,95406.0,0.086]
[1739868932421,0.157217,95409.0,95406.0,0.077]
[1739868932648,0.0001702,95413.0,95406.0,0.081]
[1739868932813,0.157217,95410.0,95406.0,0.081]
[1739868933014,0.157218,95409.0,95406.0,0.077]
[1739868933386,0.157216,95411.0,95406.0,0.077]
[1739868933595,0.209621,95410.0,95406.0,0.077]
[1739868933804,0.209621,95410.0,95406.0,0.004]
[1739868934013,0.157221,95407.0,95406.0,0.004]
[1739868934216,0.0001702,95413.0,95403.0,0.0003404]
[1739868934217,0.157226,95404.0,95403.0,0.0003404]
[1739868935294,0.157226,95404.0,95403.0,0.0063404]
[1739868935500,0.157226,95404.0,95403.0,0.0113404]
[1739868935703,0.20963,95406.0,95403.0,0.0063404]
[1739868935910,0.157226,95404.0,95403.0,0.0063404]
[1739868936117,0.157226,95404.0,95403.0,0.0123404]
[1739868936341,0.20963,95406.0,95403.0,0.0123404]
[1739868936342,0.157224,95406.0,95403.0,0.0123404]
[1739868936551,0.0001702,95411.0,95403.0,0.0123404]
[1739868936759,0.0001702,95411.0,95403.0,0.0063404]
[1739868936969,0.157223,95406.0,95403.0,0.0063404]
[1739868937170,0.0001702,95411.0,95403.0,0.0133404]
[1739868937381,0.0001702,95411.0,95403.0,0.0073404]
[1739868937592,0.157219,95408.0,95403.0,0.0003404]
[1739868937797,0.157221,95408.0,95403.0,0.0083404]
[1739868938004,0.209622,95410.0,95403.0,0.0083404]
[1739868938212,0.209623,95409.0,95403.0,0.0083404]
[1739868938419,0.01659275,95411.0,95403.0,0.0043404]
[1739868938622,0.01659275,95411.0,95403.0,0.0003404]
[1739868938822,0.01659275,95411.0,95403.0,0.0093404]
[1739868939003,0.01659275,95411.0,95403.0,0.0053404]
[1739868939538,0.157218,95409.0,95403.0,0.0093404]
[1739868939694,0.17380675,95411.0,95403.0,0.0093404]
[1739868939871,0.157216,95410.0,95403.0,0.0093404]
[1739868940085,0.157216,95410.0,95403.0,0.0043404]
[1739868940281,0.157216,95410.0,95403.0,0.0063404]
[1739868940481,0.01659275,95411.0,95403.0,0.0023404]
[1739868940482,0.317374,95409.0,95403.0,0.0023404]
[1739868940805,0.394073,95410.0,95403.0,0.04248847]
[1739868941007,0.341273,95410.0,95403.0,0.04248847]
[1739868941214,0.424073,95410.0,95403.0,0.0053404]
[1739868941419,0.424073,95410.0,95403.0,0.0093404]
[1739868941630,0.371273,95410.0,95403.0,0.0093404]
[1739868941949,0.424073,95410.0,95403.0,0.0093404]
[1739868942304,0.371273,95410.0,95403.0,0.0093404]
[1739868942504,0.324484,95409.0,95404.0,0.0508309]
[1739868942705,0.137881,95410.0,95403.0,0.0093404]
[1739868942909,0.137881,95410.0,95403.0,0.1665664]
[1739868943206,0.0001702,95411.0,95403.0,0.1665664]
[1739868943757,0.0001702,95411.0,95404.0,0.157224]
[1739868943959,0.0001702,95411.0,95405.0,0.04555468]
[1739868945128,0.0001702,95411.0,95405.0,0.04955468]
[1739868945307,0.0001702,95411.0,95405.0,0.004]
[1739868945547,0.143085,95410.0,95405.0,0.004]
[1739868946882,0.143085,95410.0,95404.0,0.0003404]
[1739868947210,0.143085,95410.0,95405.0,0.004]
[1739868947412,0.143085,95410.0,95405.0,0.009]
[1739868947953,0.143085,95410.0,95404.0,0.0003404]
[1739868948159,0.143085,95410.0,95404.0,0.0053404]
[1739868948361,0.143085,95410.0,95404.0,0.0093404]
[1739868948558,0.143085,95410.0,95404.0,0.0053404]
[1739868948760,0.157218,95409.0,95404.0,0.0003404]
[1739868948982,0.462637,95408.0,95405.0,0.005]
[1739868949187,0.450989,95410.0,95405.0,0.005]
[1739868949388,0.157218,95409.0,95405.0,0.005]
[1739868949620,0.450989,95410.0,95405.0,0.005]
[1739868949822,0.1573852,95411.0,95405.0,0.009]
[1739868949823,0.179423,95409.0,95405.0,0.009]
[1739868950035,0.0001702,95411.0,95405.0,0.07138212]
[1739868950248,0.0001702,95411.0,95405.0,0.22860412]
[1739868950455,0.0001702,95411.0,95406.0,0.157222]
[1739868950655,0.0001702,95411.0,95405.0,0.27201312]
[1739868950860,0.0001702,95411.0,95405.0,0.21960512]
[1739868951190,0.0001702,95411.0,95406.0,0.157222]
[1739868951368,0.0001702,95411.0,95405.0,0.21960612]
[1739868951510,0.0001702,95411.0,95406.0,0.004]
[1739868951706,0.0001702,95411.0,95405.0,0.162223]
[1739868951931,0.0001702,95411.0,95404.0,0.1575664]
[1739868952137,0.196005,95410.0,95404.0,0.0003404]
[1739868952349,0.176895,95409.0,95406.0,0.005]
[1739868952555,0.340926,95410.0,95406.0,0.005]
[1739868953844,0.340926,95410.0,95406.0,0.009]
[1739868954048,0.340926,95410.0,95404.0,0.0003404]
[1739868954224,0.340926,95410.0,95406.0,0.004]
[1739868954605,0.340926,95410.0,95404.0,0.0053404]
[1739868954779,0.340926,95410.0,95406.0,0.004]
[1739868955403,0.0001702,95411.0,95406.0,0.004]
[1739868955600,0.822966,95410.0,95406.0,0.004]
[1739868956008,0.717888,95410.0,95406.0,0.004]
[1739868956249,0.215453,95409.0,95406.0,0.004]
[1739868956459,0.0001702,95411.0,95406.0,0.004]
[1739868957595,0.0001702,95411.0,95406.0,0.006]
[1739868957882,0.0001702,95411.0,95406.0,0.005]
[1739868958231,0.0001702,95411.0,95406.0,0.011]
[1739868958634,0.0001702,95410.0,95406.0,0.163221]
[1739868958986,0.0001702,95410.0,95406.0,0.011]
[1739868959490,0.0001702,95410.0,95406.0,0.006]
[1739868959689,0.0001702,95410.0,95406.0,0.157222]
[1739868960103,0.0001702,95410.0,95406.0,0.006]
[1739868960511,0.0001702,95410.0,95406.0,0.005]
[1739868960712,0.0001702,95410.0,95407.0,0.0766]
[1739868961010,0.180128,95409.0,95407.0,0.0766]
[1739868962155,0.180128,95409.0,95407.0,0.0836]
[1739868962321,0.180128,95409.0,95407.0,0.0896]
[1739868962524,0.180128,95409.0,95407.0,0.24682]
[1739868962743,0.180128,95409.0,95407.0,0.0896]
[1739868963118,0.180128,95409.0,95407.0,0.0826]
[1739868963313,0.180128,95409.0,95407.0,0.0896]
[1739868963722,0.0001702,95410.0,95407.0,0.0836]
[1739868964237,0.0001702,95410.0,95407.0,0.0906]
[1739868964502,0.0001702,95410.0,95407.0,0.24782]
[1739868964712,0.0001702,95410.0,95407.0,0.24082]
[1739868965121,0.0001702,95410.0,95407.0,0.24682]
[1739868965420,0.0001702,95410.0,95407.0,0.0836]
[1739868965694,0.0001702,95410.0,95407.0,0.0906]
[1739868965929,0.0001702,95410.0,95407.0,0.247819]
[1739868966131,0.0001702,95410.0,95407.0,0.0906]
[1739868966361,0.31591,95409.0,95407.0,0.007]
[1739868966717,0.31591,95409.0,95407.0,0.014]
[1739868967441,0.31591,95409.0,95407.0,0.007]
[1739868967673,0.31591,95409.0,95405.0,0.0003404]
[1739868967884,0.0001702,95410.0,95407.0,0.007]
[1739868968087,0.0001702,95410.0,95407.0,0.014]
[1739868968611,0.0001702,95410.0,95407.0,0.007]
[1739868969058,0.21663225,95409.0,95407.0,0.007]
[1739868969263,0.107369,95409.0,95407.0,0.01702793]
[1739868969564,0.0001702,95410.0,95407.0,0.01702793]
[1739868969809,0.107206,95409.0,95407.0,0.02402793]
[1739868970105,0.107206,95409.0,95407.0,0.03102793]
[1739868970322,0.107206,95409.0,95407.0,0.01702793]
[1739868970519,0.107206,95409.0,95407.0,0.02402793]
[1739868970715,0.107206,95409.0,95407.0,0.014]
[1739868970922,0.107206,95409.0,95407.0,0.0143404]
[1739868971967,0.107206,95409.0,95407.0,0.0073404]
[1739868972548,0.264424,95409.0,95407.0,0.0003404]
[1739868972782,0.0001702,95410.0,95407.0,0.0073404]
[1739868972993,0.528398,95409.0,95407.0,0.0073404]
[1739868973166,0.157219,95408.0,95407.0,0.0073404]
[1739868973393,0.157219,95408.0,95407.0,0.0003404]
[1739868973529,0.157219,95408.0,95407.0,0.0053404]
[1739868973935,0.412123,95408.0,95407.0,0.0053404]
[1739868974136,0.157219,95408.0,95407.0,0.0053404]
[1739868974337,3.754144,95408.0,95407.0,0.0123404]
[1739868974658,3.983144,95408.0,95407.0,0.0003404]
[1739868975100,3.983144,95408.0,95407.0,0.0053404]
[1739868975389,3.983144,95408.0,95407.0,0.0003404]
[1739868975587,3.983144,95408.0,95407.0,0.0053404]
[1739868975753,3.983144,95408.0,95407.0,0.0073404]
[1739868976156,3.984144,95408.0,95407.0,0.0073404]
[1739868976458,3.984144,95408.0,95407.0,0.0003404]
[1739868976673,3.985144,95408.0,95407.0,0.0003404]
[1739868977301,3.984144,95408.0,95407.0,0.0003404]
[1739868977981,3.809388,95408.0,95407.0,0.0003404]
[1739868978381,3.408805,95408.0,95407.0,0.0003404]
[1739868979003,2.217897,95408.0,95407.0,0.0003404]
[1739868979219,2.166836,95408.0,95407.0,0.0003404]
[1739868979417,2.165836,95408.0,95407.0,0.0003404]
[1739868979866,2.166836,95408.0,95407.0,0.0003404]
[1739868980450,2.165836,95408.0,95407.0,0.0003404]
[1739868980650,2.164836,95408.0,95407.0,0.0003404]
[1739868980854,2.165836,95408.0,95407.0,0.0003404]
[1739868981053,0.747176,95408.0,95407.0,0.0003404]
[1739868981253,3.094624,95408.0,95407.0,0.0003404]
[1739868981418,3.45959,95408.0,95407.0,0.0003404]
[1739868981810,3.240458,95408.0,95407.0,0.0003404]
[1739868981960,2.998232,95408.0,95407.0,0.0003404]
[1739868982161,2.996232,95408.0,95407.0,0.0003404]
[1739868982687,2.997232,95408.0,95407.0,0.0003404]
[1739868983118,2.996232,95408.0,95407.0,0.0003404]
[1739868983506,2.097453,95408.0,95407.0,0.0003404]
[1739868983739,1.619617,95408.0,95407.0,0.0003404]
[1739868984174,1.369288,95408.0,95407.0,0.0003404]
[1739868984329,1.270177,95408.0,95407.0,0.0003404]
[1739868984527,1.270177,95408.0,95407.0,0.0013404]
[1739868984883,1.270177,95408.0,95407.0,0.0003404]
[1739868985439,1.082104,95408.0,95407.0,0.0003404]
[1739868985642,1.082104,95408.0,95407.0,0.0023404]
[1739868986068,0.992068,95408.0,95407.0,0.0003404]
[1739868986242,0.968068,95408.0,95407.0,0.0003404]
[1739868986445,0.968068,95408.0,95407.0,0.0013404]
[1739868986880,0.968068,95408.0,95407.0,0.0003404]
[1739868987084,0.968068,95408.0,95407.0,0.0023404]
[1739868987257,0.968068,95408.0,95407.0,0.0013404]
[1739868987681,0.9844922,95408.0,95407.0,0.0023404]
[1739868987842,0.8826952,95408.0,95407.0,0.0023404]
[1739868988036,0.5095142,95408.0,95407.0,0.0013404]
[1739868988312,0.0164242,95408.0,95407.0,0.0013404]
[1739868988511,0.0001702,95409.0,95407.0,0.0777404]
[1739868988863,0.0001702,95409.0,95407.0,0.0767404]
[1739868990072,0.0001702,95409.0,95407.0,0.0787404]
[1739868990491,0.0001702,95409.0,95407.0,0.0797404]
[1739868990898,0.562676,95408.0,95407.0,0.0787404]
[1739868991098,1.125139,95408.0,95407.0,0.0033404]
[1739868991763,0.719682,95408.0,95407.0,0.0033404]
[1739868991973,2.200983,95408.0,95407.0,0.0023404]
[1739868992176,2.200983,95408.0,95407.0,0.0003404]
[1739868992810,2.200983,95408.0,95407.0,0.0023404]
[1739868993756,1.798113,95408.0,95407.0,0.0003404]
[1739868993960,1.673666,95408.0,95407.0,0.0003404]
[1739868994179,1.48115,95408.0,95407.0,0.0003404]
[1739868994401,1.48115,95408.0,95407.0,0.0013404]
[1739868994604,1.48115,95408.0,95407.0,0.0003404]
[1739868994807,1.48115,95408.0,95407.0,0.0013404]
[1739868995211,1.48115,95408.0,95407.0,0.0003404]
[1739868995652,1.49757297,95408.0,95407.0,0.0003404]
[1739868996055,1.49757297,95408.0,95407.0,0.0013404]
[1739868996384,1.49757297,95408.0,95407.0,0.0003404]
[1739868997395,1.49757297,95408.0,95407.0,0.0013404]
[1739868997762,1.49757297,95408.0,95407.0,0.0003404]
[1739868998087,1.49757297,95408.0,95407.0,0.0023404]
[1739868998559,1.49757297,95408.0,95407.0,0.0043404]
[1739868998922,1.49757297,95408.0,95407.0,0.0023404]
[1739868999335,1.49757297,95408.0,95407.0,0.0043404]
[1739869002437,0.73610497,95408.0,95407.0,0.0043404]
[1739869002638,2.24846097,95408.0,95407.0,0.0043404]
[1739869002875,2.232038,95408.0,95407.0,0.0043404]
[1739869005869,1.834054,95408.0,95407.0,0.0043404]
[1739869006053,1.85047705,95408.0,95407.0,0.0023404]
[1739869006465,1.85047705,95408.0,95407.0,0.0003404]
[1739869006669,1.85047705,95408.0,95407.0,0.0023404]
[1739869006915,1.85047705,95408.0,95407.0,0.0003404]
[1739869007260,1.85047705,95408.0,95407.0,0.0023404]
[1739869007669,2.00047705,95408.0,95407.0,0.0023404]
[1739869008013,2.00047705,95408.0,95407.0,0.0003404]
[1739869008371,2.00047705,95408.0,95407.0,0.0013404]
[1739869009641,2.00047705,95408.0,95407.0,0.0003404]
[1739869010438,2.02139864,95408.0,95407.0,0.0003404]
[1739869015362,2.00497559,95408.0,95407.0,0.0003404]
[1739869018135,0.89060359,95408.0,95407.0,0.0003404]
[1739869018343,3.47268759,95408.0,95407.0,0.0003404]
[1739869018493,2.62978559,95408.0,95407.0,0.0003404]
[1739869019905,2.64620958,95408.0,95407.0,0.0003404]
[1739869020236,2.62277558,95408.0,95407.0,0.0003404]
[1739869021220,2.60185399,95408.0,95407.0,0.0003404]
[1739869021426,1.61461699,95408.0,95407.0,0.0003404]
[1739869021629,1.58675799,95408.0,95407.0,0.0003404]
[1739869022650,1.570334,95408.0,95407.0,0.0003404]
[1739869023844,1.570334,95408.0,95407.0,0.0023404]
[1739869024248,1.570334,95408.0,95407.0,0.0003404]
[1739869025734,1.58675787,95408.0,95407.0,0.0003404]
[1739869028711,0.65201587,95408.0,95407.0,0.0003404]
[1739869028934,3.43099487,95408.0,95407.0,0.0003404]
[1739869031115,2.95326287,95408.0,95407.0,0.0003404]
[1739869031312,1.04402287,95408.0,95407.0,0.0003404]
[1739869031695,0.98425687,95408.0,95407.0,0.0003404]
[1739869031897,0.89225287,95408.0,95407.0,0.0003404]
[1739869032193,0.79748287,95408.0,95407.0,0.0003404]
[1739869032818,0.781059,95408.0,95407.0,0.0003404]
[1739869033977,0.781059,95408.0,95407.0,0.0023404]
[1739869034296,0.781059,95408.0,95407.0,0.0033404]
[1739869034495,0.781059,95408.0,95407.0,0.0063404]
[1739869034666,0.781059,95408.0,95407.0,0.0003404]
[1739869034891,0.781059,95408.0,95407.0,0.0033404]
[1739869035116,0.781059,95408.0,95407.0,0.0053404]
[1739869036301,0.781059,95408.0,95407.0,0.0023404]
[1739869036641,0.781059,95408.0,95407.0,1e-08]
[1739869036841,0.307226,95404.0,95403.0,0.0003404]
[1739869037040,7.251214,95404.0,95403.0,0.0003404]
[1739869037261,7.331933,95404.0,95403.0,0.0003404]
[1739869037675,0.307236,95398.0,95356.0,0.1069177]
[1739869037902,7.567082,95398.0,95370.0,0.0814]
[1739869038077,8.109485,95398.0,95370.0,0.0814]
[1739869038278,7.850145,95398.0,95370.0,0.0814]
[1739869038482,7.13900148,95398.0,95370.0,0.0814]
[1739869038889,7.13900148,95398.0,95368.0,0.0003404]
[1739869038890,6.84989548,95398.0,95397.0,0.0013402]
[1739869039107,6.84989548,95398.0,95397.0,2e-07]
[1739869039309,0.44486348,95398.0,95397.0,2e-07]
[1739869039526,0.157283,95369.0,95368.0,0.0003404]
[1739869039712,5.086442,95369.0,95368.0,0.0003404]
[1739869039894,5.627594,95369.0,95368.0,0.0003404]
[1739869040086,6.386361,95369.0,95368.0,0.0003404]
[1739869040292,5.47305351,95369.0,95368.0,0.0003404]
[1739869040864,1.63776278,95369.0,95368.0,0.0003404]
[1739869041076,1.26957278,95369.0,95368.0,0.0053404]
[1739869041274,1.28868041,95369.0,95368.0,0.0053404]
[1739869041545,1.28868041,95369.0,95368.0,0.0083404]
[1739869042305,1.28868041,95369.0,95368.0,0.0033404]
[1739869042714,1.2722509,95369.0,95368.0,0.0033404]
[1739869043137,1.2619099,95369.0,95368.0,0.0043404]
[1739869043315,0.6537879,95369.0,95368.0,0.0043404]
[1739869043859,0.6537879,95369.0,95368.0,0.0003404]
[1739869044268,0.5037879,95369.0,95368.0,0.0003404]
[1739869044940,0.1764349,95369.0,95368.0,0.0003404]
[1739869045139,3.6877979,95369.0,95368.0,0.0003404]
[1739869045349,3.6081779,95369.0,95368.0,0.0003404]
[1739869045544,3.5801719,95369.0,95368.0,0.0003404]
[1739869045778,3.4754519,95369.0,95368.0,0.0003404]
[1739869046221,1.9497189,95369.0,95368.0,0.0003404]
[1739869046425,1.9182979,95369.0,95368.0,0.0003404]
[1739869047312,1.93472779,95369.0,95368.0,0.0003404]
[1739869047569,1.33751679,95369.0,95368.0,0.0003404]
[1739869047770,1.32450679,95369.0,95368.0,0.0003404]
[1739869052532,1.10985324,95369.0,95368.0,0.0003404]
[1739869052720,1.25070635,95369.0,95368.0,0.0003404]
[1739869054070,1.27032041,95369.0,95368.0,0.0003404]
[1739869054444,1.09026241,95369.0,95368.0,0.0003404]
[1739869055642,0.48648906,95369.0,95368.0,0.0023404]
[1739869055866,2.52086206,95369.0,95368.0,0.0023404]
[1739869056070,2.68012402,95369.0,95368.0,0.0003404]
[1739869056344,2.66012402,95369.0,95368.0,0.0023404]
[1739869056809,2.66012402,95369.0,95368.0,0.0043404]
[1739869056948,2.59841902,95369.0,95368.0,0.0043404]
[1739869057149,1.65074402,95369.0,95368.0,0.0043404]
[1739869058181,1.65074402,95369.0,95368.0,0.0003404]
[1739869059434,0.95401102,95369.0,95368.0,0.0003404]
[1739869059861,0.95401102,95369.0,95368.0,0.0013404]
[1739869060212,0.95401102,95369.0,95368.0,0.0023404]
[1739869062431,0.95401102,95369.0,95368.0,0.0013404]
[1739869062619,0.93758106,95369.0,95368.0,0.0013404]
[1739869063141,0.93758106,95369.0,95368.0,0.0003404]
[1739869065666,0.95401101,95369.0,95368.0,0.0003404]
[1739869065867,0.95862713,95369.0,95368.0,0.0003404]
[1739869066436,0.95896773,95369.0,95368.0,0.0003404]
[1739869067434,0.95896773,95369.0,95368.0,0.0023404]
[1739869068774,0.83229573,95369.0,95368.0,0.0023404]
[1739869069658,0.83229573,95369.0,95368.0,0.0013404]
[1739869070854,0.65492073,95369.0,95368.0,0.0003404]
[1739869071334,0.65492073,95369.0,95368.0,0.0013404]
[1739869071769,0.65492073,95369.0,95368.0,0.0003404]
[1739869072167,0.65492073,95369.0,95368.0,0.0758404]
[1739869072595,0.63849078,95369.0,95368.0,0.0758404]
[1739869072822,0.02457078,95369.0,95368.0,0.0758404]
[1739869073002,0.00495672,95369.0,95368.0,0.33562905]
[1739869073211,0.0003406,95369.0,95368.0,0.41954675]
[1739869073375,0.07953439,95390.0,95369.0,0.0796]
[1739869073575,0.15670826,95381.0,95370.0,0.0778]
[1739869073783,0.00479777,95380.0,95370.0,0.0778]
[1739869074432,0.157272,95376.0,95370.0,0.0778]
[1739869074599,0.157272,95376.0,95370.0,0.08567191]
[1739869074799,0.15728,95371.0,95370.0,0.08567191]
[1739869075014,0.16207478,95371.0,95370.0,0.08567191]
[1739869075454,0.16207478,95371.0,95370.0,0.09067191]
[1739869076057,0.16207478,95371.0,95370.0,0.09667191]
[1739869076291,0.16207478,95371.0,95370.0,0.0888]
[1739869076456,0.16207478,95371.0,95370.0,0.0828]
[1739869076791,0.16207478,95371.0,95370.0,0.0808]
[1739869076996,0.16207478,95371.0,95370.0,0.0848]
[1739869077397,0.16207478,95371.0,95370.0,0.0808]
[1739869077606,0.16241538,95371.0,95370.0,0.0808]
[1739869077759,0.16241538,95371.0,95370.0,0.0848]
[1739869078163,0.44921438,95371.0,95370.0,0.0848]
[1739869078367,0.66375738,95371.0,95370.0,0.0848]
[1739869078565,0.51961038,95371.0,95370.0,0.0818]
[1739869078928,0.51961038,95371.0,95370.0,0.0848]
[1739869079332,0.15635738,95371.0,95370.0,0.0848]
[1739869079540,0.28392338,95371.0,95370.0,0.0848]
[1739869080156,0.00513538,95371.0,95370.0,0.0808]
[1739869080371,0.0003406,95371.0,95370.0,0.0778]
[1739869080583,0.0003406,95371.0,95370.0,0.0818]
[1739869081010,0.0003406,95371.0,95370.0,0.34263415]
[1739869081229,0.0003406,95371.0,95370.0,0.40625011]
[1739869081429,0.0003406,95371.0,95370.0,0.45905011]
[1739869081640,0.0003406,95371.0,95370.0,0.46205011]
[1739869081844,0.0003406,95371.0,95370.0,0.45905011]
[1739869082261,0.0003406,95371.0,95370.0,0.46305011]
[1739869083074,0.0003406,95371.0,95370.0,0.45905011]
[1739869083282,0.0003406,95371.0,95370.0,0.46891119]
[1739869083585,0.0003406,95371.0,95370.0,0.47591119]
[1739869083784,0.0003406,95371.0,95370.0,0.80441119]
[1739869083993,0.0003406,95371.0,95370.0,1.36621119]
[1739869084967,0.0003406,95371.0,95370.0,1.37438997]
[1739869085200,0.0003406,95371.0,95370.0,1.36038997]
[1739869085809,0.0003406,95371.0,95370.0,1.36738997]
[1739869085929,0.0003406,95371.0,95370.0,1.36038997]
[1739869086365,0.0003406,95371.0,95370.0,1.36738997]
[1739869086993,0.0003406,95371.0,95370.0,1.37438997]
[1739869087565,0.0003406,95371.0,95370.0,1.36738997]
[1739869087790,0.0003406,95371.0,95370.0,1.37438997]
[1739869089392,0.0003406,95371.0,95370.0,1.37456027]
[1739869094574,0.0003406,95371.0,95370.0,1.52456027]
[1739869098647,0.0003406,95371.0,95370.0,1.56362704]
[1739869098783,4.43e-05,95384.0,95383.0,0.17726]
[1739869099024,4.43e-05,95384.0,95383.0,0.63404396]
[1739869099235,4.43e-05,95384.0,95383.0,0.65599605]
[1739869100040,4.43e-05,95384.0,95383.0,0.67599605]
[1739869100792,4.43e-05,95384.0,95383.0,0.69641012]
[1739869100939,4.43e-05,95384.0,95383.0,0.7115889]
[1739869101537,0.0002146,95384.0,95383.0,0.7115889]
[1739869101739,0.0002146,95384.0,95383.0,0.7045889]
[1739869102322,0.0002146,95384.0,95383.0,0.7185889]
[1739869102680,0.0002146,95384.0,95383.0,1.5760089]
[1739869102889,0.0002146,95384.0,95383.0,1.5658889]
[1739869103092,0.0002146,95384.0,95383.0,1.58002735]
[1739869103693,0.0002146,95384.0,95383.0,1.58702735]
[1739869103894,0.0002146,95384.0,95383.0,1.58002735]
[1739869104096,0.0002146,95384.0,95383.0,1.54495834]
[1739869104296,0.0002146,95384.0,95383.0,1.55195834]
[1739869104676,0.0002146,95384.0,95383.0,1.40195834]
[1739869105076,0.0002146,95384.0,95383.0,1.54495834]
[1739869105326,0.0002146,95384.0,95383.0,1.53940535]
[1739869105525,0.0002146,95384.0,95383.0,1.54640535]
[1739869105873,0.0002146,95384.0,95383.0,1.51815713]
[1739869106179,0.0002146,95384.0,95383.0,1.52515713]
[1739869106549,0.0002146,95384.0,95383.0,1.51815713]
[1739869106957,0.0002146,95384.0,95383.0,1.52515713]
[1739869107178,0.0002146,95384.0,95383.0,1.51815713]
[1739869107382,0.0002146,95384.0,95383.0,1.52515713]
[1739869107794,0.0002146,95384.0,95383.0,1.51815713]
[1739869107999,0.0002146,95384.0,95383.0,1.53770512]
[1739869108378,0.0002146,95384.0,95383.0,1.52370512]
[1739869108575,0.0002146,95384.0,95383.0,1.53070512]
[1739869108779,0.0002146,95384.0,95383.0,1.55893243]
[1739869109453,0.0002146,95384.0,95383.0,1.57462046]
[1739869109904,0.0002146,95384.0,95383.0,1.57774046]
[1739869109905,6e-07,95384.0,95383.0,1.57774046]
[1739869110111,6e-07,95384.0,95383.0,1.70834046]
[1739869110485,6e-07,95384.0,95383.0,1.71534046]
[1739869110906,6e-07,95384.0,95383.0,1.70834046]
[1739869111082,6e-07,95384.0,95383.0,1.71534046]
[1739869111284,6e-07,95384.0,95383.0,1.70834046]
[1739869111504,6e-07,95384.0,95383.0,1.70134046]
[1739869111704,6e-07,95384.0,95383.0,1.70834046]
[1739869112213,6e-07,95384.0,95383.0,1.71767581]
[1739869112412,6e-07,95384.0,95383.0,1.72467581]
[1739869112564,0.12102989,95440.0,95396.0,0.02]
[1739869112771,0.530262,95439.0,95411.0,0.023]
[1739869112990,0.209564,95437.0,95413.0,0.023]
[1739869113195,0.301343,95436.0,95415.0,0.023]
[1739869113420,0.00500621,95436.0,95417.0,0.023]
[1739869113654,0.441696,95435.0,95424.0,0.157192]
[1739869113857,0.441696,95435.0,95425.0,0.10250365]
[1739869113858,0.157178,95433.0,95425.0,0.10250365]
[1739869113997,0.679954,95432.0,95425.0,0.10250365]
[1739869114201,0.00500005,95432.0,95418.0,0.538102]
[1739869114402,0.157181,95431.0,95419.0,0.157201]
[1739869114606,0.157185,95429.0,95418.0,0.67491641]